bitfinex/quotes_SOLUSD_20251223
["timestamp","ask_amount","ask_price","bid_price","bid_amount"]
[1766451323249,0.69,126.85,126.81,27.60517084]
[1766451323785,0.69,126.85,126.81,17.16749788]
[1766451324376,0.69,126.85,126.81,14.87]
[1766451325165,0.69,126.85,126.81,17.16749788]
[1766451326567,0.69,126.85,126.82,2.29749788]
[1766451326778,2.98749788,126.89,126.84,2.76749788]
[1766451326968,10.86875643,126.89,126.85,2.76749788]
[1766451327167,8.57125855,126.89,126.85,2.76749788]
[1766451327987,0.69,126.88,126.85,0.47]
[1766451328363,0.69,126.88,126.85,2.76749788]
[1766451329691,10.86823072,126.9,126.86,0.47]
[1766451329887,10.86823072,126.9,126.85,2.29749788]
[1766451329888,0.69,126.89,126.85,2.76749788]
[1766451331286,34.09784648,126.92,126.86,2.76749788]
[1766451331287,10.1772694,126.91,126.86,2.76749788]
[1766451331593,0.66,126.9,126.86,2.76749788]
[1766451332369,0.66,126.9,126.86,0.47]
[1766451332578,0.66,126.9,126.86,2.76749788]
[1766451335287,0.66,126.9,126.86,10.18012818]
[1766451335588,2.95749788,126.91,126.87,0.47]
[1766451335790,0.66,126.91,126.88,0.47]
[1766451335991,0.66,126.91,126.87,2.76749788]
[1766451336893,2.95749788,126.91,126.87,0.47]
[1766451337083,19.69507784,126.94,126.88,2.76749788]
[1766451337084,0.7,126.93,126.88,2.76749788]
[1766451337269,0.7,126.92,126.88,2.76749788]
[1766451337468,0.7,126.92,126.89,0.47]
[1766451337992,0.7,126.92,126.88,2.76749788]
[1766451338685,0.7,126.92,126.88,0.47]
[1766451339485,2.99749788,126.92,126.88,0.47]
[1766451339864,7.87773751,126.94,126.85,14.87]
[1766451339865,0.7,126.94,126.85,14.87]
[1766451340095,0.7,126.89,126.85,14.87]
[1766451340279,0.7,126.89,126.85,22.75324605]
[1766451340585,0.7,126.89,126.86,0.47]
[1766451342203,0.7,126.89,126.86,2.76749788]
[1766451342596,0.7,126.89,126.86,0.47]
[1766451344494,0.7,126.89,126.86,2.76749788]
[1766451352093,0.7,126.89,126.86,2.29749788]
[1766451353188,0.7,126.89,126.85,22.75324605]
[1766451353515,0.7,126.88,126.85,17.16749788]
[1766451353689,0.7,126.88,126.84,8.35338798]
[1766451353889,0.7,126.87,126.84,2.29749788]
[1766451354201,0.7,126.87,126.84,12.73517084]
[1766451356204,0.7,126.87,126.84,10.43767296]
[1766451357503,7.88085008,126.89,126.84,20.61906206]
[1766451357504,10.17834796,126.89,126.84,20.61906206]
[1766451357815,0.7,126.89,126.85,2.76749788]
[1766451360182,0.7,126.89,126.85,10.65062988]
[1766451363712,0.7,126.89,126.86,0.47]
[1766451367208,53.77169846,126.94,126.86,0.47]
[1766451367209,0.7,126.95,126.91,10.90767296]
[1766451367504,3.58213653,127.02,126.94,4.05213653]
[1766451367505,0.7,126.98,126.94,4.05213653]
[1766451367699,3.58213653,126.98,126.93,3.58213653]
[1766451368010,0.7,126.97,126.94,3.58213653]
[1766451368216,3.68213653,127.0,126.94,4.05213653]
[1766451368418,0.7,126.99,126.95,4.05213653]
[1766451369286,0.7,126.99,126.95,0.47]
[1766451370287,3.58213653,126.98,126.94,14.4]
[1766451370486,0.7,126.97,126.94,14.4]
[1766451375108,11.456825,126.99,126.94,14.87]
[1766451375418,0.7,126.99,126.95,0.47]
[1766451375592,0.7,126.99,126.95,4.05213653]
[1766451376620,0.7,126.99,126.96,0.47]
[1766451376993,0.7,126.99,126.95,11.92924732]
[1766451377208,0.7,126.99,126.95,0.47]
[1766451378221,0.8,127.0,126.96,4.05213653]
[1766451378605,0.8,127.0,126.96,0.47]
[1766451378904,0.8,127.0,126.96,8.34645598]
[1766451379933,4.38213653,127.0,126.96,8.34645598]
[1766451380434,0.8,127.0,126.96,4.05213653]
[1766451380629,0.7,126.99,126.96,0.47]
[1766451380932,0.7,126.99,126.95,7.87688401]
[1766451381104,0.7,126.99,126.94,28.88980949]
[1766451381929,0.7,126.94,126.85,7.88332676]
[1766451382127,0.7,126.92,126.88,0.47]
[1766451382300,0.7,126.91,126.88,0.47]
[1766451382504,4.28213653,126.91,126.88,0.47]
[1766451382715,0.7,126.91,126.88,0.47]
[1766451384521,0.7,126.91,126.88,8.35127519]
[1766451387425,0.7,126.91,126.87,18.78960262]
[1766451387828,0.7,126.9,126.89,10.43767296]
[1766451388014,11.46191279,126.91,126.87,0.66]
[1766451388337,3.58213653,126.91,126.87,0.66]
[1766451390033,4.28213653,126.91,126.89,10.43767296]
[1766451390236,3.58213653,126.91,126.89,10.43767296]
[1766451390433,0.7,126.9,126.89,10.43767296]
[1766451392014,0.7,126.9,126.85,8.56313517]
[1766451392015,0.6,126.89,126.85,8.56313517]
[1766451392213,4.18213653,126.89,126.85,0.68]
[1766451393025,0.6,126.89,126.85,11.46544441]
[1766451393226,0.6,126.89,126.86,0.68]
[1766451393521,19.69614425,126.93,126.86,8.56267881]
[1766451393522,12.06179128,126.91,126.86,8.56267881]
[1766451393841,8.47965475,126.91,126.87,0.68]
[1766451394424,12.06179128,126.91,126.87,0.68]
[1766451395448,0.6,126.9,126.87,0.68]
[1766451396686,0.6,126.9,126.84,24.81767296]
[1766451396687,4.18213653,126.89,126.84,32.7014446]
[1766451396947,4.18213653,126.88,126.84,33.3714446]
[1766451397324,4.18213653,126.88,126.84,25.48767296]
[1766451397626,4.18213653,126.88,126.84,11.10767296]
[1766451398645,0.6,126.87,126.84,11.10767296]
[1766451398839,4.18213653,126.86,126.84,10.43767296]
[1766451399043,0.6,126.86,126.84,10.43767296]
[1766451399644,0.6,126.87,126.84,10.43767296]
[1766451400723,14.38,126.91,126.85,3.58213653]
[1766451400946,4.18213653,126.9,126.86,0.67]
[1766451401459,0.6,126.89,126.86,0.67]
[1766451401674,0.6,126.89,126.85,0.67]
[1766451402357,4.18213653,126.89,126.85,0.67]
[1766451403152,3.58213653,126.89,126.85,0.67]
[1766451403334,4.18213653,126.89,126.85,0.67]
[1766451405933,85.53171552,126.88,126.85,14.4]
[1766451407648,85.53171552,126.88,126.85,22.28329388]
[1766451407969,85.53171552,126.88,126.85,22.95329388]
[1766451408323,85.53171552,126.88,126.85,22.28329388]
[1766451408527,4.25213653,126.87,126.85,14.4]
[1766451408751,4.25213653,126.87,126.83,25.50767296]
[1766451408927,0.67,126.87,126.84,0.67]
[1766451409662,89.78385205,126.88,126.84,8.55387516]
[1766451410348,89.78385205,126.88,126.84,0.67]
[1766451411254,0.67,126.87,126.84,0.67]
[1766451411551,86.20171552,126.88,126.84,8.55392786]
[1766451413854,85.53171552,126.88,126.85,0.67]
[1766451418943,85.53171552,126.88,126.86,14.4]
[1766451419443,86.20171552,126.88,126.86,14.4]
[1766451419639,89.78385205,126.88,126.86,14.4]
[1766451419948,86.20171552,126.88,126.86,14.4]
[1766451420536,0.67,126.88,126.86,14.4]
[1766451422165,8.55183373,126.88,126.86,14.4]
[1766451422366,12.13397026,126.88,126.86,14.4]
[1766451422565,85.53171552,126.87,126.86,14.4]
[1766451424354,85.53171552,126.87,126.86,15.07]
[1766451432671,85.53171552,126.87,126.86,14.4]
[1766451434650,93.41379954,126.87,126.83,25.50767296]
[1766451434864,95.70665404,126.87,126.83,25.50767296]
[1766451435062,2.2928545,126.86,126.83,25.50767296]
[1766451435264,95.70665404,126.87,126.83,25.50767296]
[1766451437474,10.17493852,126.87,126.83,25.50767296]
[1766451438962,7.88208402,126.87,126.83,25.50767296]
[1766451439161,10.17493852,126.87,126.83,11.10767296]
[1766451439555,85.53171552,126.86,126.83,11.10767296]
[1766451439957,85.53171552,126.86,126.83,0.67]
[1766451440258,87.82457002,126.86,126.83,0.67]
[1766451441170,85.53171552,126.86,126.83,0.67]
[1766451444680,85.53171552,126.86,126.83,7.88446604]
[1766451444861,85.53171552,126.86,126.84,0.67]
[1766451445683,85.53171552,126.86,126.85,0.67]
[1766451447078,7.87946015,126.92,126.86,0.67]
[1766451447278,7.87946015,126.92,126.87,0.67]
[1766451447279,16.6728545,126.91,126.87,0.67]
[1766451448059,2.2928545,126.9,126.87,0.67]
[1766451448380,2.2928545,126.9,126.86,0.67]
[1766451449890,2.2928545,126.9,126.86,8.55265843]
[1766451453031,2.2928545,126.9,126.86,7.88265843]
[1766451453204,2.2928545,126.9,126.86,8.56265843]
[1766451453385,2.2928545,126.9,126.86,0.68]
[1766451454099,2.2928545,126.89,126.84,22.96380391]
[1766451454299,2.2928545,126.89,126.85,0.68]
[1766451455106,10.1741096,126.89,126.85,0.68]
[1766451455289,2.2928545,126.88,126.85,0.68]
[1766451457008,2.2928545,126.86,126.8,22.00813819]
[1766451457311,2.2928545,126.85,126.82,0.67]
[1766451457801,2.2928545,126.86,126.82,0.67]
[1766451459381,2.2928545,126.85,126.82,0.67]
[1766451460899,7.88243909,126.87,126.82,0.67]
[1766451461096,2.2928545,126.86,126.82,0.67]
[1766451463489,10.17577688,126.86,126.82,0.67]
[1766451463692,2.2928545,126.85,126.82,0.67]
[1766451469902,2.2928545,126.84,126.8,18.32388872]
[1766451470100,2.2928545,126.84,126.81,0.67]
[1766451471302,2.2928545,126.84,126.82,0.67]
[1766451473706,7.88292785,126.86,126.82,0.67]
[1766451473904,2.2928545,126.84,126.82,0.67]
[1766451475319,2.2928545,126.85,126.82,0.67]
[1766451476516,7.88292785,126.86,126.82,0.67]
[1766451476708,2.2928545,126.85,126.82,0.67]
[1766451478200,2.2928545,126.84,126.8,11.10767296]
[1766451478514,2.2928545,126.84,126.81,0.67]
[1766451478943,2.2928545,126.85,126.82,0.67]
[1766451485932,3.58520345,126.85,126.82,0.67]
[1766451487730,22.26210715,126.87,126.83,0.69]
[1766451487915,3.58520345,126.86,126.83,0.69]
[1766451504749,7.88210715,126.87,126.83,0.69]
[1766451504947,3.58520345,126.86,126.83,0.69]
[1766451512140,11.46792074,126.86,126.83,0.69]
[1766451515368,7.88208402,126.87,126.83,0.69]
[1766451515661,3.58520345,126.86,126.83,0.69]
[1766451515860,7.88208402,126.87,126.81,7.88554824]
[1766451515861,27.58729407,126.87,126.81,7.88566568]
[1766451516063,3.58520345,126.85,126.82,0.68]
[1766451517162,3.58520345,126.83,126.8,11.11767296]
[1766451517365,3.58520345,126.82,126.8,0.68]
[1766451517548,3.58520345,126.81,126.8,0.68]
[1766451517751,3.58520345,126.81,126.78,0.68]
[1766451523668,3.58520345,126.81,126.77,7.8882673]
[1766451523974,3.58520345,126.81,126.78,0.68]
[1766451524157,7.88520993,126.82,126.78,0.68]
[1766451524362,3.58520345,126.81,126.78,0.68]
[1766451527267,11.47109137,126.81,126.78,0.68]
[1766451527657,0.58291259,126.8,126.78,0.68]
[1766451527850,3.58520345,126.8,126.78,0.68]
[1766451530464,7.88588792,126.81,126.78,0.68]
[1766451530657,11.47109137,126.81,126.78,0.68]
[1766451531163,3.58520345,126.8,126.78,0.68]
[1766451533966,11.47109137,126.81,126.78,0.68]
[1766451534947,3.58520345,126.8,126.78,0.68]
[1766451548065,2.2961579,126.8,126.78,0.68]
[1766451548570,22.28582861,126.81,126.78,0.68]
[1766451548884,2.2961579,126.8,126.78,0.18]
[1766451549990,14.9,126.81,126.78,0.18]
[1766451550192,2.2961579,126.8,126.78,0.18]
[1766451565498,17.1961579,126.81,126.78,0.18]
[1766451567800,17.1961579,126.81,126.78,8.06767632]
[1766451568294,14.9,126.81,126.78,8.06767632]
[1766451568500,17.1961579,126.81,126.78,8.06767632]
[1766451578912,17.1961579,126.81,126.78,0.18]
[1766451579321,2.2961579,126.8,126.78,0.18]
[1766451583912,2.2961579,126.79,126.76,18.32632719]
[1766451584115,2.2961579,126.77,126.72,2.2961579]
[1766451584339,2.2961579,126.77,126.73,0.71]
[1766451584550,2.7961579,126.78,126.73,0.71]
[1766451585255,2.7961579,126.78,126.74,7.88992259]
[1766451585415,2.2961579,126.77,126.75,0.71]
[1766451586109,22.78706128,126.79,126.75,0.71]
[1766451586302,2.2961579,126.78,126.75,0.71]
[1766451588332,2.2961579,126.8,126.75,2.2961579]
[1766451588633,14.4,126.8,126.76,0.71]
[1766451590142,16.6961579,126.8,126.77,0.71]
[1766451590742,2.2961579,126.8,126.77,0.71]
[1766451594133,2.7961579,126.8,126.77,0.71]
[1766451597345,0.5,126.8,126.77,0.71]
[1766451597634,2.7961579,126.8,126.77,0.71]
[1766451598636,2.2961579,126.8,126.77,0.71]
[1766451600235,14.9,126.81,126.77,0.71]
[1766451600436,14.4,126.81,126.77,0.71]
[1766451600735,16.69585538,126.81,126.77,0.71]
[1766451600933,0.5,126.82,126.78,0.71]
[1766451601137,2.29585538,126.83,126.78,0.71]
[1766451601138,22.78501725,126.83,126.78,0.71]
[1766451601440,25.08087263,126.83,126.79,0.71]
[1766451602045,0.5,126.8,126.76,0.71]
[1766451602349,2.29585538,126.8,126.76,0.71]
[1766451602552,2.29585538,126.8,126.76,7.88885848]
[1766451602843,2.29585538,126.8,126.77,0.71]
[1766451603269,25.08087263,126.83,126.78,0.71]
[1766451603558,2.29585538,126.82,126.78,0.71]
[1766451603721,2.79585538,126.82,126.78,0.71]
[1766451604561,2.79585538,126.82,126.74,14.4]
[1766451604562,2.79585538,126.79,126.76,0.71]
[1766451604850,2.79585538,126.78,126.75,0.71]
[1766451605043,2.29585538,126.78,126.75,0.71]
[1766451605426,2.79585538,126.79,126.75,0.71]
[1766451605640,2.29585538,126.79,126.75,7.88905534]
[1766451605948,2.29585538,126.8,126.76,0.7]
[1766451606148,2.79585538,126.81,126.77,0.7]
[1766451607425,10.68128376,126.82,126.78,0.7]
[1766451607853,10.68128376,126.82,126.76,0.7]
[1766451607854,2.79585538,126.8,126.76,0.7]
[1766451608025,4.08767183,126.8,126.76,0.7]
[1766451608224,3.58767183,126.8,126.76,0.7]
[1766451608426,3.58767183,126.81,126.77,0.7]
[1766451608624,26.37310021,126.82,126.78,0.7]
[1766451608942,3.58767183,126.82,126.78,0.7]
[1766451611458,11.97242642,126.83,126.78,0.7]
[1766451612060,4.08767183,126.82,126.78,0.7]
[1766451617357,0.5,126.82,126.78,0.7]
[1766451617549,4.08767183,126.82,126.78,0.7]
[1766451619158,0.5,126.82,126.78,0.7]
[1766451619352,4.08767183,126.82,126.78,0.7]
[1766451620857,11.97299051,126.82,126.78,0.7]
[1766451621161,3.58767183,126.81,126.78,0.7]
[1766451624550,11.97299051,126.82,126.78,0.7]
[1766451628869,8.38531868,126.82,126.78,0.7]
[1766451630766,11.97299051,126.82,126.78,0.7]
[1766451631673,11.47299051,126.82,126.78,0.7]
[1766451631848,0.5,126.81,126.78,0.7]
[1766451632365,8.38601341,126.81,126.78,0.7]
[1766451632571,11.97368524,126.81,126.78,0.7]
[1766451633572,11.47368524,126.81,126.78,0.7]
[1766451634972,7.88601341,126.81,126.78,0.7]
[1766451637867,11.9730964,126.82,126.78,0.7]
[1766451638253,8.38542457,126.82,126.78,0.7]
[1766451640647,11.9730964,126.82,126.78,0.7]
[1766451641150,8.38542457,126.82,126.78,0.7]
[1766451641358,11.9730964,126.82,126.78,0.7]
[1766451642674,4.08767183,126.79,126.76,0.69]
[1766451642975,4.08767183,126.79,126.74,7.88998094]
[1766451642976,4.08767183,126.78,126.75,0.69]
[1766451643170,0.5,126.78,126.75,0.69]
[1766451643491,4.08767183,126.79,126.75,0.69]
[1766451646153,0.5,126.79,126.75,3.58767183]
[1766451646481,7.88655426,126.8,126.76,0.69]
[1766451646777,11.97422609,126.8,126.76,0.69]
[1766451647584,3.58767183,126.79,126.76,0.69]
[1766451648086,11.97422609,126.8,126.76,0.69]
[1766451648479,3.58767183,126.79,126.76,0.69]
[1766451648780,4.08767183,126.79,126.76,0.69]
[1766451648982,0.5,126.78,126.76,0.69]
[1766451649189,0.5,126.78,126.71,0.2]
[1766451649190,0.3,126.76,126.65,0.89]
[1766451649404,7.70567183,126.69,126.66,0.69]
[1766451649559,4.118,126.69,126.68,0.69]
[1766451652091,4.118,126.69,126.66,11.12767296]
[1766451652581,7.70567183,126.69,126.66,0.69]
[1766451652784,3.58767183,126.67,126.65,0.2]
[1766451652962,3.58767183,126.66,126.64,0.2]
[1766451653164,3.78767183,126.67,126.64,0.2]
[1766451653392,3.78767183,126.67,126.64,0.89]
[1766451656187,3.58767183,126.66,126.64,0.89]
[1766451657181,11.68228755,126.67,126.64,0.89]
[1766451657386,3.78767183,126.67,126.64,0.89]
[1766451657877,3.58767183,126.71,126.66,3.58767183]
[1766451658084,18.18767183,126.72,126.67,4.27767183]
[1766451658283,3.58767183,126.7,126.66,0.69]
[1766451658492,0.2,126.7,126.64,0.2]
[1766451658785,3.78767183,126.69,126.65,0.69]
[1766451659963,11.68103275,126.69,126.65,0.69]
[1766451660379,8.09336092,126.69,126.65,0.69]
[1766451660578,11.68103275,126.69,126.65,0.69]
[1766451660791,11.48103275,126.69,126.65,0.69]
[1766451660985,3.78767183,126.68,126.65,0.69]
[1766451661190,3.78767183,126.68,126.64,0.89]
[1766451661591,3.58767183,126.66,126.64,0.2]
[1766451661896,3.58767183,126.65,126.64,0.2]
[1766451662098,3.78767183,126.66,126.64,0.2]
[1766451662588,11.68289748,126.66,126.64,0.2]
[1766451662894,0.2,126.64,126.62,0.2]
[1766451663078,3.58767183,126.65,126.62,0.89]
[1766451663267,17.98767183,126.65,126.62,0.89]
[1766451663463,18.18767183,126.65,126.62,0.2]
[1766451663865,0.2,126.64,126.62,0.2]
[1766451664767,26.08396682,126.65,126.62,0.2]
[1766451666298,22.49629499,126.65,126.62,0.2]
[1766451666495,14.4,126.66,126.63,0.7]
[1766451666792,26.08309405,126.66,126.63,0.7]
[1766451666997,25.88309405,126.66,126.63,0.7]
[1766451667375,26.08309405,126.66,126.63,0.7]
[1766451667790,14.4,126.66,126.63,0.7]
[1766451668385,24.79641366,126.66,126.63,0.7]
[1766451668582,2.50099714,126.65,126.62,0.9]
[1766451670796,2.30099714,126.65,126.62,0.9]
[1766451671297,9.40728174,126.65,126.62,0.9]
[1766451671594,8.09589335,126.65,126.62,0.9]
[1766451671896,10.39689049,126.65,126.62,0.9]
[1766451672606,10.39689049,126.65,126.62,0.2]
[1766451672983,2.50099714,126.64,126.6,0.9]
[1766451673295,2.30099714,126.62,126.6,0.2]
[1766451673889,2.30099714,126.62,126.6,0.9]
[1766451675506,24.81823854,126.63,126.6,0.9]
[1766451676612,22.5172414,126.63,126.6,0.9]
[1766451676809,19.74207052,126.64,126.61,0.7]
[1766451676810,7.89639951,126.64,126.61,0.7]
[1766451677104,24.61677289,126.65,126.61,0.7]
[1766451677281,14.42,126.65,126.62,0.7]
[1766451677882,22.31595864,126.65,126.62,0.7]
[1766451679403,2.50099714,126.64,126.6,0.2]
[1766451679598,2.30099714,126.63,126.61,0.7]
[1766451680106,2.30099714,126.64,126.61,0.7]
[1766451680680,22.31595864,126.65,126.6,0.2]
[1766451680681,2.30099714,126.62,126.6,0.2]
[1766451682098,10.19875396,126.62,126.6,0.2]
[1766451682996,16.92099714,126.63,126.6,0.9]
[1766451683200,24.61803624,126.63,126.6,0.9]
[1766451683612,2.30099714,126.62,126.6,0.2]
[1766451683992,2.30099714,126.61,126.59,0.2]
[1766451684191,10.19947717,126.61,126.59,0.2]
[1766451685408,7.89775255,126.62,126.6,0.7]
[1766451685902,7.89698217,126.64,126.6,0.7]
[1766451686110,24.61797931,126.64,126.6,0.7]
[1766451687512,10.19797931,126.64,126.6,0.7]
[1766451688101,2.30099714,126.63,126.6,0.7]
[1766451690007,10.39797931,126.64,126.6,0.7]
[1766451690188,7.89698217,126.64,126.6,0.7]
[1766451690385,24.61700107,126.65,126.61,0.7]
[1766451690588,24.61700107,126.65,126.59,8.09927099]
[1766451690589,22.31600393,126.65,126.62,0.7]
[1766451691904,7.89541645,126.66,126.62,3.00099714]
[1766451692105,24.61641359,126.66,126.62,0.7]
[1766451692510,2.30099714,126.65,126.62,0.7]
[1766451693102,24.61641359,126.66,126.62,0.7]
[1766451693299,24.81641359,126.66,126.62,0.7]
[1766451697931,10.43767296,126.69,126.65,2.30099714]
[1766451698099,7.89265982,126.7,126.66,0.67]
[1766451698427,8.09265982,126.7,126.66,2.30099714]
[1766451698720,8.09265982,126.7,126.67,0.67]
[1766451699017,22.51265982,126.7,126.66,2.97099714]
[1766451699314,24.81365696,126.7,126.66,0.67]
[1766451699825,2.50099714,126.67,126.64,0.67]
[1766451700030,10.39575799,126.67,126.64,0.67]
[1766451706337,8.09476085,126.67,126.64,0.67]
[1766451706528,10.39575799,126.67,126.64,0.67]
[1766451708841,2.50099714,126.67,126.64,0.67]
[1766451709722,7.8939059,126.68,126.64,0.67]
[1766451709923,24.61490304,126.68,126.64,0.67]
[1766451710131,14.42,126.68,126.64,0.67]
[1766451710736,16.72099714,126.68,126.64,0.67]
[1766451711339,2.30099714,126.68,126.64,0.67]
[1766451711536,24.61440689,126.69,126.64,0.67]
[1766451713024,2.50099714,126.68,126.64,0.67]
[1766451713349,2.30099714,126.68,126.64,0.67]
[1766451714543,22.31340975,126.69,126.64,7.89631812]
[1766451714544,24.81440689,126.69,126.64,7.89631812]
[1766451714846,14.42,126.68,126.65,0.67]
[1766451715024,24.81440689,126.69,126.65,0.67]
[1766451715224,10.39440689,126.69,126.65,0.67]
[1766451715425,24.81440689,126.69,126.65,0.67]
[1766451715726,10.39440689,126.69,126.65,0.67]
[1766451716046,24.81440689,126.69,126.65,0.67]
[1766451717253,10.39440689,126.69,126.65,0.67]
[1766451717430,24.81440689,126.69,126.65,0.67]
[1766451717635,31.02130174,126.89,126.65,0.67]
[1766451717636,73.39032867,126.81,126.68,0.67]
[1766451717933,24.81178858,126.73,126.69,0.67]
[1766451719331,2.30099714,126.72,126.69,0.67]
[1766451719528,10.19270609,126.72,126.69,0.67]
[1766451719924,0.2,126.69,126.66,0.67]
[1766451720137,2.30099714,126.69,126.66,0.67]
[1766451720348,2.30099714,126.7,126.66,0.67]
[1766451720544,7.89170895,126.72,126.68,0.67]
[1766451720749,14.42,126.71,126.68,0.67]
[1766451723067,16.72099714,126.71,126.68,0.67]
[1766451724030,14.42,126.71,126.68,0.67]
[1766451725261,24.81202638,126.73,126.69,0.67]
[1766451725628,22.51102924,126.73,126.69,0.67]
[1766451725938,24.81202638,126.73,126.69,0.67]
[1766451726134,22.31102924,126.73,126.69,0.67]
[1766451726443,24.61202638,126.73,126.69,0.67]
[1766451727045,22.31102924,126.73,126.69,0.67]
[1766451728646,19.92602134,126.74,126.7,0.65]
[1766451728647,7.89041818,126.74,126.7,0.65]
[1766451728846,7.89041818,126.74,126.71,0.65]
[1766451729839,22.4897262,126.75,126.71,0.65]
[1766451730060,26.08036644,126.75,126.71,0.65]
[1766451730775,22.4897262,126.75,126.71,0.65]
[1766451730957,26.08036644,126.75,126.71,0.65]
[1766451731963,11.4797631,126.76,126.72,0.65]
[1766451732167,14.4,126.75,126.72,0.65]
[1766451733044,25.88022931,126.75,126.72,0.65]
[1766451733250,3.79064024,126.74,126.7,0.65]
[1766451736067,11.68110541,126.74,126.7,0.65]
[1766451736769,26.08041363,126.75,126.7,0.65]
[1766451736954,18.19064024,126.75,126.71,0.65]
[1766451737863,14.4,126.75,126.72,0.65]
[1766451739967,7.88851743,126.77,126.73,0.65]
[1766451740149,14.4,126.76,126.73,0.65]
[1766451740348,17.99064024,126.76,126.73,0.65]
[1766451744873,14.4,126.76,126.73,0.65]
[1766451752583,18.19064024,126.76,126.73,0.65]
[1766451754087,0.2,126.75,126.72,11.08767296]
[1766451754489,17.99064024,126.76,126.72,10.43767296]
[1766451754790,18.19064024,126.76,126.73,0.65]
[1766451757686,14.6,126.76,126.73,0.65]
[1766451757896,14.4,126.76,126.73,0.65]
[1766451760091,8.08772784,126.78,126.73,11.48140484]
[1766451760298,14.4,126.77,126.74,0.7]
[1766451761475,14.6,126.77,126.74,0.7]
[1766451762605,3.59064024,126.78,126.74,0.7]
[1766451762898,14.4,126.78,126.75,0.7]
[1766451764307,0.1,126.79,126.75,3.59064024]
[1766451764482,0.1,126.79,126.77,0.7]
[1766451766990,3.69064024,126.79,126.77,0.7]
[1766451768009,0.1,126.79,126.77,0.7]
[1766451768600,0.1,126.8,126.76,0.7]
[1766451769191,0.1,126.8,126.77,0.7]
[1766451769807,3.69064024,126.8,126.77,0.7]
[1766451770002,0.1,126.8,126.77,0.7]
[1766451771715,0.4,126.87,126.79,3.59064024]
[1766451771884,0.5,126.86,126.8,0.7]
[1766451772088,4.09064024,126.86,126.82,0.7]
[1766451772284,0.6,126.85,126.82,0.7]
[1766451772995,4.09064024,126.84,126.8,0.7]
[1766451773206,4.09064024,126.83,126.8,0.7]
[1766451773587,0.5,126.83,126.8,0.7]
[1766451774192,4.09064024,126.83,126.8,0.7]
[1766451774711,3.59064024,126.81,126.77,25.53767296]
[1766451775011,3.59064024,126.8,126.77,0.7]
[1766451775208,3.59064024,126.8,126.77,11.13767296]
[1766451775511,4.09064024,126.8,126.77,11.13767296]
[1766451779233,0.5,126.8,126.77,11.13767296]
[1766451779392,4.09064024,126.8,126.77,11.13767296]
[1766451781448,0.5,126.8,126.77,11.13767296]
[1766451781649,7.88578859,126.82,126.79,0.7]
[1766451781824,11.47642883,126.82,126.79,0.7]
[1766451782022,4.09064024,126.81,126.77,11.13767296]
[1766451782326,4.09064024,126.8,126.75,11.48018211]
[1766451782535,4.09064024,126.8,126.76,0.7]
[1766451785651,3.59064024,126.78,126.68,0.68]
[1766451785856,3.59064024,126.78,126.72,0.68]
[1766451785857,3.59064024,126.75,126.72,0.68]
[1766451786148,3.59064024,126.78,126.73,4.27064024]
[1766451786334,3.59064024,126.78,126.74,0.68]
[1766451787157,4.09064024,126.78,126.74,11.11767296]
[1766451787565,3.59064024,126.78,126.75,0.68]
[1766451788151,3.59064024,126.77,126.75,0.68]
[1766451788670,11.97837578,126.78,126.75,0.68]
[1766451789754,22.2874528,126.79,126.75,0.68]
[1766451789951,7.8874528,126.79,126.76,0.68]